bitfinex/quotes_ETHUSD_20240718
["timestamp","ask_amount","ask_price","bid_price","bid_amount"]
[1721265148165,5.25107,3415.0,3414.4,2.92876]
[1721265148370,2.92816,3415.2,3414.4,2.92876]
[1721265148371,5.8563,3415.2,3414.4,3.51453]
[1721265148569,2.92817,3415.1,3414.4,3.51453]
[1721265151186,6.44289503,3415.6,3414.6,2.92858]
[1721265151364,2.928,3415.3,3414.7,2.92849]
[1721265152109,2.92796,3415.4,3414.7,2.92849]
[1721265152476,2.92796,3415.4,3414.6,0.406327]
[1721265152477,3.97901,3415.3,3414.6,0.406327]
[1721265152792,3.97901,3415.3,3414.6,2.9286]
[1721265153671,3.17901,3415.3,3414.6,2.9286]
[1721265155003,2.92808,3415.2,3414.6,2.9286]
[1721265155579,1.051,3415.1,3414.6,2.9286]
[1721265156022,1.051,3415.1,3414.2,2.92888]
[1721265156177,1.051,3415.1,3414.1,5.39916]
[1721265156523,3.3439,3415.1,3414.1,7.044176]
[1721265157329,2.92825,3415.0,3414.3,2.92885]
[1721265158941,1.051,3414.6,3414.0,12.92911]
[1721265159440,6.24675,3414.6,3414.0,10.0]
[1721265160129,2.92869,3414.5,3414.0,10.0]
[1721265163436,3.97978,3414.4,3414.0,10.0]
[1721265164652,2.92888,3414.3,3414.0,10.0]
[1721265165756,3.97994,3414.2,3414.0,10.0]
[1721265166566,2.92902,3414.1,3414.0,10.0]
[1721265167217,1.051,3414.2,3414.0,10.0]
[1721265168556,2.92902,3414.1,3414.0,10.0]
[1721265169155,5.20312,3414.1,3414.0,10.0]
[1721265171369,2.2741,3414.1,3414.0,10.0]
[1721265171673,5.20312,3414.1,3414.0,10.0]
[1721265174366,3.97995,3414.2,3414.0,10.0]
[1721265178899,1.051,3414.2,3414.0,10.0]
[1721265179060,1.051,3414.4,3414.0,10.0]
[1721265179388,4.051,3414.4,3414.0,10.0]
[1721265179584,1.051,3414.2,3414.0,10.0]
[1721265180687,2.3811,3414.1,3414.0,10.0]
[1721265180890,1.051,3414.2,3414.0,10.0]
[1721265181087,3.4321,3414.2,3414.0,10.0]
[1721265181874,1.051,3414.2,3414.0,10.0]
[1721265182955,1.051,3414.2,3414.1,1.0]
[1721265190816,1.051,3414.2,3414.1,0.95]
[1721265191119,3.3015,3414.2,3414.1,0.95]
[1721265191277,6.23044,3414.2,3414.1,0.95]
[1721265191476,9.15938,3414.2,3414.1,0.95]
[1721265191902,13.69391732,3414.2,3414.1,0.95]
[1721265192075,12.15938,3414.2,3414.1,0.95]
[1721265192814,13.69439795,3414.2,3414.1,0.95]
[1721265195372,13.69404385,3414.2,3414.1,0.95]
[1721265197989,12.15938,3414.2,3414.1,0.95]
[1721265198195,13.69400028,3414.2,3414.1,0.95]
[1721265198734,13.69418809,3414.2,3414.1,0.95]
[1721265199097,12.15938,3414.2,3414.1,0.95]
[1721265199439,13.6943246,3414.2,3414.1,0.95]
[1721265199808,11.44383127,3414.2,3414.1,0.95]
[1721265201815,9.90888,3414.2,3414.1,0.95]
[1721265201991,11.44420365,3414.2,3414.1,0.95]
[1721265202219,9.90888,3414.2,3414.1,0.95]
[1721265206220,6.97994,3414.2,3414.1,0.95]
[1721265206531,8.51588271,3414.2,3414.1,0.95]
[1721265206740,6.97994,3414.2,3414.1,0.95]
[1721265207362,8.51588271,3414.2,3414.1,0.95]
[1721265207819,7.46488271,3414.2,3414.1,0.95]
[1721265208020,8.51588271,3414.2,3414.1,0.95]
[1721265208331,8.51608975,3414.2,3414.1,0.95]
[1721265208861,8.51611245,3414.2,3414.1,0.95]
[1721265209223,6.97994,3414.2,3414.1,0.95]
[1721265209572,8.51622177,3414.2,3414.1,0.95]
[1721265210424,6.97994,3414.2,3414.1,0.95]
[1721265210623,8.51633188,3414.2,3414.1,0.95]
[1721265211452,9.90888,3414.2,3414.1,0.95]
[1721265211635,10.69534247,3414.2,3414.1,0.95]
[1721265212420,15.50897323,3414.2,3414.1,0.95]
[1721265212631,18.43791323,3414.2,3414.1,0.95]
[1721265212970,16.59418247,3414.2,3414.1,0.95]
[1721265214257,15.54318247,3414.2,3414.1,0.95]
[1721265214479,15.80772,3414.2,3414.1,0.95]
[1721265214620,16.59429024,3414.2,3414.1,0.95]
[1721265217758,16.5942822,3414.2,3414.1,0.95]
[1721265218138,15.80772,3414.2,3414.1,0.95]
[1721265218337,8.55835545,3414.2,3414.1,0.95]
[1721265218589,11.44441729,3414.2,3414.1,0.95]
[1721265218726,9.90888,3414.2,3414.1,0.95]
[1721265219337,7.46453442,3414.2,3414.1,0.95]
[1721265219632,8.51553442,3414.2,3414.1,0.95]
[1721265220336,9.90888,3414.2,3414.1,0.95]
[1721265220548,8.85788,3414.2,3414.1,0.95]
[1721265220879,9.90888,3414.2,3414.1,0.95]
[1721265221230,11.44455744,3414.2,3414.1,0.95]
[1721265221633,8.51561744,3414.2,3414.1,0.95]
[1721265222245,7.46461744,3414.2,3414.1,0.95]
[1721265222452,4.53567744,3414.2,3414.1,0.95]
[1721265222767,4.051,3414.2,3414.1,3.3188]
[1721265225249,4.22865877,3414.2,3414.1,3.3188]
[1721265225445,5.27965877,3414.2,3414.1,4.943604]
[1721265225743,4.051,3414.2,3414.1,3.3188]
[1721265225941,4.051,3414.2,3414.1,0.95]
[1721265225942,8.5156948,3414.2,3414.1,0.95]
[1721265226988,6.97994,3414.2,3414.1,0.95]
[1721265227266,8.51595026,3414.2,3414.1,0.95]
[1721265227473,6.97994,3414.2,3414.1,0.95]
[1721265227676,8.51597348,3414.2,3414.1,0.95]
[1721265228066,8.51600774,3414.2,3414.1,0.95]
[1721265228265,9.90888,3414.2,3414.1,0.95]
[1721265228465,11.44510307,3414.2,3414.1,0.95]
[1721265229211,9.90888,3414.2,3414.1,0.95]
[1721265229748,11.44523812,3414.2,3414.1,0.95]
[1721265230143,9.90888,3414.2,3414.1,0.95]
[1721265230459,11.44533966,3414.2,3414.1,0.95]
[1721265230663,9.90888,3414.2,3414.1,0.95]
[1721265232449,10.69531956,3414.2,3414.1,0.95]
[1721265233081,9.90888,3414.2,3414.1,0.95]
[1721265233452,10.69530909,3414.2,3414.1,0.95]
[1721265235895,3.78642909,3414.2,3414.1,0.95]
[1721265236074,2.58822252,3414.2,3414.1,4.3074]
[1721265236404,1.22979672,3414.2,3414.1,4.3074]
[1721265236724,1.051,3414.2,3414.1,4.3074]
[1721265237413,2.28079672,3414.2,3414.1,3.2124]
[1721265238464,2.28079672,3414.2,3414.1,0.95]
[1721265238688,1.051,3414.2,3414.1,0.95]
[1721265238891,2.28076197,3414.2,3414.1,0.95]
[1721265239202,5.20970197,3414.2,3414.1,0.95]
[1721265239367,3.97994,3414.2,3414.1,0.95]
[1721265239567,5.51724451,3414.2,3414.1,0.95]
[1721265240103,6.90888,3414.2,3414.1,0.95]
[1721265242781,7.69530389,3414.2,3414.1,0.95]
[1721265245078,12.5399523,3414.2,3414.1,0.95]
[1721265245281,10.69534281,3414.2,3414.1,0.95]
[1721265246315,13.62428281,3414.2,3414.1,0.95]
[1721265246525,14.17434019,3414.2,3414.1,0.95]
[1721265247127,14.17434159,3414.2,3414.1,0.95]
[1721265248619,13.38782,3414.2,3414.1,0.95]
[1721265248791,14.1743236,3414.2,3414.1,0.95]
[1721265251818,13.38782,3414.2,3414.1,0.95]
[1721265252022,14.1743383,3414.2,3414.1,0.95]
[1721265254311,16.32605564,3414.2,3414.1,0.95]
[1721265254936,14.174433,3414.2,3414.1,0.95]
[1721265255105,16.32601578,3414.2,3414.1,0.95]
[1721265255422,16.31676,3414.2,3414.1,0.95]
[1721265255606,17.10337298,3414.2,3414.1,0.95]
[1721265256006,17.10345159,3414.2,3414.1,0.95]
[1721265256934,16.32577683,3414.2,3414.1,0.95]
[1721265257135,13.12351159,3414.2,3414.1,0.95]
[1721265257419,16.01814006,3414.2,3414.1,0.95]
[1721265257825,16.01815077,3414.2,3414.1,0.95]
[1721265258187,13.38782,3414.2,3414.1,0.95]
[1721265258421,14.17432282,3414.2,3414.1,0.95]
[1721265258629,16.67282282,3414.2,3414.1,0.95]
[1721265258926,14.17432282,3414.2,3414.1,0.95]
[1721265261327,13.38782,3414.2,3414.1,0.95]
[1721265261499,14.17437755,3414.2,3414.1,0.95]
[1721265261899,16.32546982,3414.2,3414.1,0.95]
[1721265262725,14.17437755,3414.2,3414.1,0.95]
[1721265262937,16.32546982,3414.2,3414.1,0.95]
[1721265263739,14.17437755,3414.2,3414.1,0.95]
[1721265264840,14.17437301,3414.2,3414.1,0.95]
[1721265265046,13.38782,3414.2,3414.1,0.95]
[1721265265202,16.32546693,3414.2,3414.1,0.95]
[1721265265642,16.32539905,3414.2,3414.1,0.95]
[1721265267331,14.17444058,3414.2,3414.1,0.95]
[1721265267845,13.38782,3414.2,3414.1,0.95]
[1721265268060,14.17442519,3414.2,3414.1,0.95]
[1721265268413,16.32510081,3414.2,3414.1,0.95]
[1721265270745,15.27410081,3414.2,3414.1,0.95]
[1721265270949,14.17442519,3414.2,3414.1,0.95]
[1721265271149,14.17435503,3414.2,3414.1,0.95]
[1721265271327,16.01749593,3414.2,3414.1,0.95]
[1721265272034,14.17435503,3414.2,3414.1,0.95]
[1721265273257,9.64441503,3414.2,3414.1,0.95]
[1721265273582,9.90888,3414.2,3414.1,0.95]
[1721265273872,1.22865952,3414.2,3414.1,1.24866068]
[1721265274025,1.22865952,3414.2,3414.1,3.70726068]
[1721265274222,2.27965952,3414.3,3414.2,2.4586]
[1721265274449,2.27965952,3414.3,3414.2,3.82932607]
[1721265275271,1.22865952,3414.6,3414.3,2.4368]
[1721265275572,1.53564838,3414.7,3414.3,2.4368]
[1721265275573,1.051,3414.7,3414.3,2.4368]
[1721265275865,1.051,3414.7,3414.5,2.4578]
[1721265277367,8.48865952,3414.9,3414.6,2.92858]
[1721265277368,1.22865952,3414.9,3414.6,2.92858]
[1721265277540,19.66,3415.2,3414.9,2.3863]
[1721265277848,1.051,3415.3,3414.9,2.3863]
[1721265278969,2.92796,3415.4,3414.9,2.3863]
[1721265279269,1.051,3415.0,3414.9,2.3863]
[1721265281132,1.051,3415.3,3415.0,0.56874093]
[1721265281465,1.051,3415.1,3415.0,0.56874093]
[1721265283541,3.0,3415.6,3415.0,2.89664093]
[1721265283542,5.92774,3415.6,3415.0,2.89664093]
[1721265283747,5.92774,3415.6,3415.1,0.58249709]
[1721265283748,1.051,3415.5,3415.1,0.58249709]
[1721265283946,1.051,3415.3,3415.1,0.58249709]
[1721265285767,1.051,3415.3,3415.2,2.3493]
[1721265285970,1.051,3415.3,3415.2,2.9921868]
[1721265286961,1.051,3415.5,3415.2,2.9921868]
[1721265287667,5.92774,3415.6,3415.2,2.9921868]
[1721265287668,1.051,3415.3,3415.2,2.9921868]
[1721265288736,1.051,3415.3,3415.2,2.3493]
[1721265290664,2.92793,3415.4,3415.0,0.56874093]
[1721265290665,2.92809,3415.2,3415.0,0.56874093]
[1721265290868,2.92809,3415.2,3414.8,2.2767]
[1721265292951,1.051,3415.3,3414.8,2.2767]
[1721265294890,1.051,3415.3,3414.8,2.92841]
[1721265295095,1.051,3415.3,3415.0,2.4778]
[1721265295291,1.051,3415.6,3415.0,2.4778]
[1721265295645,1.051,3415.6,3415.0,2.92825]
[1721265295847,1.051,3415.6,3415.1,5.21987]
[1721265296182,1.051,3415.6,3414.9,2.92833]
[1721265296183,7.26,3415.7,3415.2,2.2917]
[1721265296346,7.26,3415.7,3415.6,2.2917]
[1721265297467,7.26,3415.7,3415.6,5.21944]
[1721265301849,7.26,3415.7,3415.6,9.19818]
[1721265302603,1.051,3416.8,3416.1,5.31524]
[1721265302746,1.22865952,3417.9,3416.5,2.388]
[1721265302747,1.051,3417.1,3416.5,2.388]
[1721265302953,2.92644,3417.2,3416.5,2.388]
[1721265303178,2.92644,3417.2,3416.5,5.31496]
[1721265303379,1.051,3417.3,3416.5,5.31496]
[1721265303586,1.051,3417.3,3416.6,0.824201]
[1721265303895,1.051,3417.1,3416.6,0.824201]
[1721265304190,2.92625,3417.4,3416.6,3.751071]
[1721265304430,1.051,3417.1,3416.6,0.824201]
[1721265304563,1.051,3416.9,3416.5,2.388]
[1721265304766,1.051,3416.9,3416.5,5.31496]
[1721265305753,1.051,3417.1,3416.5,5.31496]
[1721265306259,2.92638,3417.2,3416.5,5.31496]
[1721265306468,2.9262,3417.4,3416.5,2.388]
[1721265306668,2.92605,3417.6,3416.7,2.92679]
[1721265306872,2.92605,3417.6,3416.8,2.4736]
[1721265307483,2.92605,3417.6,3416.8,5.40029]
[1721265308903,2.92612,3417.5,3416.8,5.40029]
[1721265309057,2.9262,3417.4,3416.8,2.4736]
[1721265310356,2.9262,3417.4,3416.8,5.9935042]
[1721265310678,2.9262,3417.4,3416.8,5.4003]
[1721265311191,2.92608,3417.6,3416.8,5.4003]
[1721265311383,2.92608,3417.6,3416.8,5.4588275]
[1721265311780,2.92608,3417.6,3416.9,2.9266]
[1721265312015,2.92608,3417.6,3416.9,3.76514275]
[1721265312217,2.92612,3417.5,3416.8,2.4736]
[1721265312387,2.92612,3417.5,3416.8,5.40031]
[1721265312814,2.92621,3417.4,3416.8,2.4736]
[1721265313116,2.92621,3417.4,3416.8,5.4003]
[1721265313306,2.92621,3417.4,3416.9,0.54003]
[1721265313680,5.92566,3418.1,3417.0,5.41993]
[1721265313880,2.9257,3418.0,3417.3,2.4934]
[1721265314080,2.9257,3418.0,3417.3,3.33387519]
[1721265314737,3.0,3418.1,3417.4,5.36354]
[1721265314895,2.92559,3418.2,3417.4,5.36354]
[1721265315294,2.92559,3418.2,3417.5,2.92609]
[1721265316520,2.92564,3418.1,3417.4,2.4374]
[1721265316709,2.92564,3418.1,3417.4,5.36357]
[1721265317024,2.92564,3418.1,3417.4,6.27660852]
[1721265317580,2.92559,3418.2,3417.4,3.35043852]
[1721265317581,2.9258,3417.9,3417.4,3.35043852]
[1721265318324,2.92564,3418.1,3417.4,6.27662852]
[1721265319228,2.9257,3418.0,3417.4,3.35043852]
[1721265319444,2.92577,3417.9,3417.4,3.35043852]
[1721265319924,2.92566,3418.1,3417.5,2.2729]
[1721265320124,3.04946268,3418.3,3417.5,5.19898]
[1721265320308,0.12398268,3418.3,3417.6,3.79706183]
[1721265320487,0.12398268,3418.3,3417.7,2.3165]
[1721265321228,0.12398268,3418.3,3417.9,2.4866]
[1721265321530,0.12398268,3418.3,3417.9,5.41235]
[1721265321683,0.12398268,3418.3,3418.0,2.54510821]
[1721265321886,0.12398268,3418.3,3418.1,0.54708982]
[1721265323109,0.12398268,3418.3,3418.2,2.4866]
[1721265323823,0.12398268,3418.3,3418.2,2.48535694]
[1721265324327,0.12398268,3418.3,3418.2,5.41086694]
[1721265325223,0.12398268,3418.3,3418.2,2.48535694]
[1721265326700,0.12398268,3418.3,3418.2,3.37374062]
[1721265326907,0.12398268,3418.3,3418.2,6.29925062]
[1721265327322,0.12398268,3418.3,3418.2,9.22476062]
[1721265327818,0.12398268,3418.4,3418.3,5.85086]
[1721265328021,0.12398268,3418.4,3418.3,11.13849]
[1721265328250,1e-08,3418.4,3418.3,12.58971306]
[1721265328407,7.26,3419.4,3419.2,5.28684]
[1721265328601,12.4,3419.9,3419.2,5.28684]
[1721265328602,19.66,3419.9,3419.2,5.28684]
[1721265329196,19.66,3419.9,3419.4,2.92448]
[1721265329844,19.66,3419.9,3419.2,5.2868]
[1721265330155,19.66,3419.9,3419.3,3.453244]
[1721265330444,19.66,3419.9,3419.4,2.92448]
[1721265331305,19.66,3419.9,3419.3,0.528684]
[1721265331708,19.66,3419.9,3419.3,2.92454]
[1721265332640,19.66,3419.9,3419.2,5.28684]
[1721265332962,22.58407,3419.9,3419.2,2.3622]
[1721265333134,19.66,3419.9,3419.2,2.3622]
[1721265333305,2.92447,3419.5,3418.6,2.92516]
[1721265333504,2.92447,3419.5,3418.5,5.423]
[1721265333505,2.92447,3419.5,3418.7,0.585047]
[1721265333852,2.92447,3419.5,3418.3,4.45122306]
[1721265333853,2.92498,3418.9,3418.3,2.423]
[1721265334154,2.92498,3418.9,3416.9,2.92659]
[1721265334155,2.92491,3418.9,3417.8,2.423]
[1721265334658,2.92491,3418.9,3417.9,2.92576]
[1721265334659,2.92517,3418.6,3417.9,2.92576]
[1721265334828,2.92517,3418.6,3418.0,0.827467]
[1721265335368,2.92476,3419.1,3418.3,2.92542]
[1721265335858,7.26,3419.2,3418.3,2.92542]
[1721265335859,2.92483,3419.0,3418.3,2.92542]
[1721265336012,2.92483,3419.0,3418.1,2.92559]
[1721265336013,7.26,3419.2,3418.4,2.92534]
[1721265336210,7.26,3419.2,3418.5,2.423]
[1721265336445,7.26,3419.2,3418.6,2.92515]
[1721265337714,7.26,3419.2,3418.5,2.423]
[1721265338049,7.26,3419.2,3418.7,2.92508]
[1721265338755,7.26,3419.2,3418.8,2.92498]
[1721265338927,7.26,3419.2,3418.9,0.585006]
[1721265339259,2.92445,3419.5,3418.9,0.585006]
[1721265339615,12.4,3419.6,3418.9,0.585006]
[1721265339816,10.26,3419.7,3418.9,0.585006]
[1721265340042,7.26,3419.7,3419.3,2.92456]
[1721265340247,7.26,3419.7,3419.4,2.607856]
[1721265340462,7.26,3419.7,3419.4,5.532326]
[1721265342328,7.26,3419.7,3419.4,2.607856]
[1721265342650,7.26,3419.7,3419.4,5.532336]
[1721265346053,2.92398,3420.0,3419.5,0.8456976]
[1721265346620,22.58384,3420.2,3419.5,0.8456976]
[1721265346960,2.92392,3420.1,3419.5,0.8456976]
[1721265348353,19.66,3420.2,3419.7,2.92416]
[1721265348354,7.26,3420.2,3419.7,2.92416]
[1721265348564,2.92363,3420.4,3419.8,0.66942476]
[1721265348785,10.3299362,3420.6,3419.8,3.59355476]
[1721265349055,7.4064162,3420.6,3420.0,2.92396]
[1721265349218,7.4064162,3420.6,3420.0,3.508769]
[1721265349756,7.4064162,3420.6,3420.1,2.92388]
[1721265350056,7.4064162,3420.6,3420.2,2.3253]
[1721265351152,7.4064162,3420.6,3420.4,2.92356]
[1721265351316,0.1464162,3420.6,3420.5,5.84708]
[1721265351645,0.1464162,3420.6,3420.5,3.740778]
[1721265352353,0.1464162,3420.6,3420.0,0.584809]
[1721265352652,0.1464162,3420.6,3420.3,2.92365]
[1721265354128,0.1464162,3420.6,3420.2,2.3316]
[1721265355370,0.1464162,3420.6,3420.2,5.25534]
[1721265355568,0.1464162,3420.6,3420.3,2.92371]
[1721265356132,0.1464162,3420.6,3420.4,2.92363]
[1721265356337,0.1464162,3420.6,3420.5,0.525523]
[1721265361453,0.1464162,3420.6,3420.2,2.3316]
[1721265361859,0.1464162,3420.6,3420.2,5.25538]
[1721265362994,0.1464162,3420.6,3420.5,2.92354]
[1721265363134,0.1464162,3420.6,3420.5,8.24978]
[1721265363345,7.26,3421.4,3420.5,8.24978]
[1721265363346,7.26,3421.4,3421.1,5.32568]
[1721265363684,2.92235,3421.9,3421.3,2.92286]
[1721265363685,7.26,3421.9,3421.3,2.92286]
[1721265364391,7.26,3421.9,3421.5,2.92266]
[1721265364543,7.26,3421.9,3421.1,2.4027]
[1721265365093,7.26,3421.9,3421.6,2.92254]
[1721265365261,7.26,3421.9,3421.7,3.507031]
[1721265365447,7.26,3421.9,3421.8,2.92243]
[1721265365644,10.18185,3422.5,3421.8,2.92243]
[1721265366078,10.18184,3422.5,3421.9,2.92235]
[1721265366258,10.18184,3422.5,3421.1,2.4027]
[1721265366259,7.26,3422.5,3421.1,2.4027]
[1721265366469,7.26,3422.5,3421.9,2.92234]
[1721265366789,2.92176,3422.6,3421.9,2.92234]
[1721265367185,2.92169,3422.7,3421.7,2.9225]
[1721265367494,2.92175,3422.6,3421.6,2.9226]
[1721265367649,2.92175,3422.6,3421.7,0.584536]
[1721265367845,19.7129696,3422.9,3421.8,2.3336]
[1721265367846,7.3129696,3422.9,3421.8,2.3336]
[1721265368807,7.3129696,3422.9,3422.2,2.92209]
[1721265369311,10.2344696,3422.9,3422.2,2.92209]
[1721265369451,7.3129696,3422.9,3422.3,0.584434]
[1721265369654,7.3129696,3422.9,3422.4,2.28]
[1721265370108,7.3129696,3422.9,3422.4,5.20191]
[1721265371201,0.0529696,3422.9,3422.6,2.92173]
[1721265371763,0.0529696,3422.9,3422.4,2.28]
[1721265371764,0.0529696,3422.9,3422.8,5.20158]
[1721265372116,7.4064162,3424.0,3422.8,5.20158]
[1721265372117,7.4064162,3424.0,3423.7,2.9208]
[1721265372296,0.1464162,3424.0,3423.9,2.92064]
[1721265373278,0.1464162,3424.0,3423.9,5.84128]
[1721265373472,7.26,3425.1,3424.2,2.92038]
[1721265373694,7.26,3425.1,3423.9,2.52]
[1721265373695,7.26,3425.1,3424.3,3.0]
[1721265373866,7.26,3425.1,3424.6,2.92004]
[1721265374525,7.26,3425.1,3424.4,0.3]
[1721265374806,7.26,3425.1,3423.4,5.20846]
[1721265374807,2.277,3425.0,3423.4,5.20846]
[1721265374963,2.92041,3424.2,3423.4,2.2874]
[1721265375161,2.92041,3424.2,3423.5,0.520854]
[1721265375399,7.26,3424.5,3423.8,2.92072]
[1721265375575,10.18015,3424.5,3423.8,2.92072]
[1721265375907,10.18015,3424.5,3423.5,3.441834]
[1721265375908,10.18015,3424.5,3423.5,0.520854]
[1721265376110,7.26,3424.5,3423.6,0.8650404]
[1721265376317,7.26,3424.5,3423.7,2.92079]
[1721265376467,2.92023,3424.4,3423.4,2.2874]
[1721265377319,2.92023,3424.4,3421.3,7.39]
[1721265377320,7.26,3424.5,3422.7,2.4007]
[1721265377612,7.26,3424.5,3422.7,5.32236]
[1721265377613,2.92082,3423.7,3422.7,5.32236]
[1721265377776,2.92082,3423.7,3422.8,0.824415]
[1721265377977,2.92082,3423.7,3422.7,2.4007]
[1721265377978,2.92099,3423.5,3422.4,2.92188]
[1721265378178,2.92099,3423.5,3422.0,2.4007]
[1721265378179,2.92122,3423.3,3422.2,2.92209]
[1721265378409,2.92125,3423.2,3422.3,2.922]
[1721265378609,2.92111,3423.4,3422.4,2.92188]
[1721265378811,2.9212,3423.3,3422.5,0.584388]
[1721265379344,2.92125,3423.2,3421.7,3.086]
[1721265379494,7.26,3423.1,3422.0,2.92225]
[1721265379701,7.26,3423.1,3422.3,2.922]
[1721265380249,7.26,3423.1,3422.5,2.9218]
[1721265380400,7.26,3423.1,3422.3,2.922]
[1721265380401,12.4,3423.4,3422.6,2.92174]
[1721265380601,12.4,3423.4,3422.7,2.92159]
[1721265380798,12.4,3423.4,3423.1,2.92126]
[1721265381031,12.4,3423.4,3423.0,2.92134]
[1721265381230,12.4,3423.4,3423.2,2.92122]
[1721265381503,7.26,3424.0,3423.4,2.92106]
[1721265381734,2.91896,3425.9,3422.9,3.086]
[1721265381735,7.26,3424.4,3422.9,3.086]
[1721265381955,7.26,3424.4,3423.4,2.92099]
[1721265382235,7.26,3424.4,3424.1,2.92041]
[1721265382398,12.4,3424.8,3424.0,2.92053]
[1721265382799,12.4,3424.8,3423.7,5.2463]
[1721265382800,15.31988,3424.8,3423.7,5.2463]
[1721265383014,12.4,3424.8,3424.1,2.92046]
[1721265384206,12.4,3424.8,3424.3,2.92022]
[1721265385618,12.4,3424.8,3424.1,2.92046]
[1721265386548,12.4,3424.8,3424.2,2.92038]
[1721265386858,10.1798,3424.9,3424.2,2.92038]
[1721265387139,7.26,3424.9,3423.9,2.92064]
[1721265387355,2.91988,3424.8,3423.9,2.92064]
[1721265387651,7.26,3424.9,3424.1,2.92046]
[1721265387819,7.26,3424.9,3423.9,2.92057]
[1721265388023,2.91988,3424.8,3423.9,2.92057]
[1721265388341,2.91996,3424.7,3423.4,5.92101]
[1721265388548,2.91996,3424.7,3423.2,2.92123]
[1721265388549,2.92028,3424.4,3423.5,0.884224]
[1721265388845,2.92047,3424.1,3423.3,2.92115]
[1721265389045,2.92082,3423.7,3423.0,1.0014333]
[1721265389367,2.92065,3423.9,3422.6,2.92169]
[1721265389368,2.92091,3423.6,3422.6,2.92169]
[1721265389514,2.92091,3423.6,3422.7,2.92164]
[1721265389727,2.92091,3423.6,3422.8,0.818696]
[1721265389925,2.92091,3423.6,3422.8,3.740276]
[1721265390124,2.92076,3423.8,3422.8,0.818696]
[1721265390353,2.92065,3423.9,3422.9,2.92148]
[1721265390543,2.9209,3423.6,3422.7,2.92166]
[1721265390868,2.92073,3423.8,3422.7,0.58124709]
[1721265391020,7.26,3424.0,3422.7,0.58124709]
[1721265391021,2.92098,3423.5,3422.7,0.58124709]
[1721265391221,2.92082,3423.7,3422.8,2.92156]
[1721265391425,2.92082,3423.7,3422.8,5.84306]
[1721265391660,2.92073,3423.8,3422.8,2.9215]
[1721265392167,2.92082,3423.7,3422.8,2.92152]
[1721265392369,2.92091,3423.6,3422.8,2.92152]
[1721265392569,2.92074,3423.8,3422.9,3.505805]
[1721265392725,2.92081,3423.7,3422.2,3.0]
[1721265392930,10.18097,3423.6,3422.7,2.92165]
[1721265393140,10.18097,3423.6,3423.1,2.92131]
[1721265393141,7.26,3423.6,3423.1,2.92131]
[1721265393369,2.92073,3423.8,3423.1,2.92131]
[1721265393541,12.4,3423.9,3423.2,2.92117]
[1721265393872,12.4,3423.9,3423.4,2.92104]
[1721265394442,12.4,3423.9,3423.5,2.92097]
[1721265394629,12.4,3423.9,3423.6,2.92089]
[1721265396569,12.4,3423.9,3423.2,0.292117]
[1721265396733,12.4,3423.9,3423.1,2.92132]
[1721265396935,12.4,3423.9,3423.2,2.92124]
[1721265397134,12.4,3423.9,3422.9,2.92148]
[1721265397135,12.4,3423.9,3423.0,2.92136]
[1721265397333,12.4,3423.9,3422.9,2.92148]
[1721265397572,2.92087,3423.7,3422.9,3.822228]
[1721265399135,2.9209,3423.6,3422.9,3.822228]
[1721265399337,2.9209,3423.6,3422.9,0.900748]
[1721265399539,2.92109,3423.4,3422.5,2.92181]
[1721265399731,2.92109,3423.4,3422.6,2.92174]
[1721265400367,2.92133,3423.1,3422.3,2.92196]
[1721265400930,2.92142,3423.0,3422.3,2.92196]
[1721265402261,7.26,3423.4,3422.1,3.086]
[1721265402461,7.26,3423.4,3422.8,2.92157]
[1721265403777,10.18108,3423.4,3422.6,2.92175]
[1721265403935,10.18108,3423.4,3422.2,3.78066]
[1721265404139,10.18108,3423.4,3422.5,2.92183]
[1721265404343,10.18108,3423.4,3422.6,2.92171]
[1721265404649,10.18108,3423.4,3422.6,0.584354]
[1721265405042,2.92115,3423.3,3422.3,2.92199]
[1721265405246,7.26,3423.4,3422.2,0.3086]
[1721265405247,2.9215,3422.9,3422.2,0.3086]
[1721265405445,7.26,3423.4,3422.2,0.3086]
[1721265405446,2.92158,3422.8,3422.2,0.3086]
[1721265406246,2.92158,3422.8,3421.4,3.086]
[1721265406247,2.92184,3422.5,3421.6,2.92258]
[1721265406693,2.92194,3422.4,3421.6,2.92258]
[1721265407183,2.92194,3422.4,3421.0,5.34425]
[1721265407184,2.92219,3422.1,3421.2,2.92293]
[1721265407386,2.92219,3422.1,3421.2,3.749653]
[1721265407682,2.92237,3421.9,3421.2,0.826723]
[1721265407888,2.92271,3421.5,3420.6,2.92343]
[1721265408294,2.92287,3421.3,3420.4,2.92361]
[1721265408653,2.92269,3421.5,3420.5,2.92353]
[1721265408992,2.92263,3421.6,3420.8,2.92328]
[1721265409361,7.26,3421.7,3420.8,2.92328]
[1721265409694,7.26,3421.7,3420.6,3.739793]
[1721265409898,2.9227,3421.5,3420.6,0.816353]
[1721265410094,2.9227,3421.5,3420.3,2.3163]
[1721265410095,2.9227,3421.5,3420.8,2.92328]
[1721265410682,2.9227,3421.5,3420.3,2.3163]
[1721265410888,2.9227,3421.5,3420.7,2.92336]